bitfinex/quotes_BTCUSD_20250127
["timestamp","ask_amount","ask_price","bid_price","bid_amount"]
[1737944255627,0.5362916,101490.0,101480.0,0.74523989]
[1737944255832,0.5352916,101490.0,101480.0,0.65083515]
[1737944256034,0.5322916,101490.0,101480.0,0.65083515]
[1737944256528,0.5322916,101490.0,101480.0,0.89846393]
[1737944256529,0.4322916,101490.0,101480.0,0.89846393]
[1737944256740,0.0874923,101520.0,101510.0,0.27838714]
[1737944256966,0.0874923,101520.0,101510.0,0.72679323]
[1737944257431,0.0874923,101520.0,101510.0,0.61497884]
[1737944257708,0.0874923,101520.0,101510.0,0.51763155]
[1737944257926,0.3352463,101520.0,101510.0,0.1228]
[1737944258131,0.1,101500.0,101490.0,0.87177914]
[1737944258349,0.247783,101500.0,101490.0,0.319852]
[1737944258558,0.24513029,101500.0,101490.0,0.1228]
[1737944258769,0.24513029,101500.0,101480.0,0.23776521]
[1737944258770,0.247797,101490.0,101480.0,0.08896621]
[1737944259026,0.247797,101490.0,101480.0,0.23677821]
[1737944259237,0.247797,101490.0,101480.0,0.08896621]
[1737944260066,0.103,101490.0,101480.0,0.16826845]
[1737944260278,0.250797,101490.0,101480.0,0.16826845]
[1737944260470,0.12154,101490.0,101480.0,0.17608759]
[1737944260881,0.12154,101490.0,101480.0,0.45790198]
[1737944261093,0.12154,101490.0,101480.0,0.77539656]
[1737944261094,0.02154,101490.0,101480.0,0.77539656]
[1737944262159,0.01854,101490.0,101480.0,0.77539656]
[1737944262366,0.01854,101490.0,101480.0,0.77639656]
[1737944262777,0.01954,101490.0,101480.0,0.77639656]
[1737944263057,0.01954,101490.0,101480.0,0.67904927]
[1737944263285,0.01854,101490.0,101480.0,0.29206845]
[1737944263514,0.01854,101490.0,101480.0,0.46206845]
[1737944263724,0.11854,101490.0,101480.0,0.46988759]
[1737944264358,0.2846816,101490.0,101480.0,0.44206845]
[1737944265202,0.2846816,101490.0,101480.0,0.44106845]
[1737944265414,0.11854,101490.0,101480.0,0.53841574]
[1737944265603,0.12254,101490.0,101480.0,0.55841574]
[1737944265820,0.12254,101490.0,101480.0,0.53841574]
[1737944266027,0.36768429,101490.0,101480.0,0.00029715]
[1737944266454,0.44852589,101490.0,101480.0,0.00029715]
[1737944266665,0.4819545,101490.0,101480.0,0.00029715]
[1737944266874,0.44852589,101490.0,101480.0,0.00029715]
[1737944268313,0.44452589,101490.0,101480.0,0.00029715]
[1737944268512,0.45052589,101490.0,101480.0,0.00029715]
[1737944268680,0.45252589,101490.0,101480.0,0.00029715]
[1737944269086,0.89076541,101490.0,101480.0,0.00029715]
[1737944269287,0.92562224,101490.0,101480.0,0.00029715]
[1737944269711,0.94862224,101490.0,101480.0,0.00029715]
[1737944270612,0.99424138,101490.0,101480.0,0.00029715]
[1737944271172,0.84698638,101490.0,101480.0,0.00029715]
[1737944271530,0.81212955,101490.0,101480.0,0.00029715]
[1737944271710,0.77560589,101490.0,101480.0,0.00029715]
[1737944271946,0.87778675,101490.0,101480.0,0.00029715]
[1737944272160,0.75250675,101490.0,101480.0,0.00029715]
[1737944272306,0.70470675,101490.0,101480.0,0.00029715]
[1737944272519,0.70252589,101490.0,101480.0,0.00029715]
[1737944272700,0.60252589,101490.0,101480.0,0.00029715]
[1737944273247,0.60470675,101490.0,101480.0,0.00029715]
[1737944273492,0.60252589,101490.0,101480.0,0.00029715]
[1737944273894,0.60052589,101490.0,101480.0,0.00029715]
[1737944274082,0.68801819,101490.0,101480.0,0.00029715]
[1737944274396,0.61715912,101490.0,101480.0,0.00029715]
[1737944274550,0.36907819,101490.0,101480.0,0.00029715]
[1737944275174,1.24791719,101490.0,101480.0,0.00029715]
[1737944275335,1.10472705,101490.0,101480.0,0.00029715]
[1737944275800,1.04702705,101490.0,101480.0,0.00029715]
[1737944276947,0.88772075,101490.0,101480.0,0.00029715]
[1737944277310,1.38040075,101490.0,101480.0,0.00029715]
[1737944278228,1.02934675,101490.0,101480.0,0.00029715]
[1737944278641,1.16119475,101490.0,101480.0,0.00029715]
[1737944279065,1.02934675,101490.0,101480.0,0.00029715]
[1737944279476,1.15849775,101490.0,101480.0,0.00029715]
[1737944280001,1.02934675,101490.0,101480.0,0.00029715]
[1737944280654,1.16797675,101490.0,101480.0,0.00029715]
[1737944280864,1.02934675,101490.0,101480.0,0.00029715]
[1737944281119,1.66143975,101490.0,101480.0,0.00029715]
[1737944281321,1.48003175,101490.0,101480.0,0.00029715]
[1737944281561,1.46023475,101490.0,101480.0,0.00029715]
[1737944282712,1.03919033,101490.0,101480.0,0.00029715]
[1737944282839,0.94534947,101490.0,101480.0,0.00029715]
[1737944283046,0.77422589,101490.0,101480.0,0.00029715]
[1737944284159,0.76250589,101490.0,101480.0,0.00029715]
[1737944284398,0.77422589,101490.0,101480.0,0.00029715]
[1737944284579,0.76250589,101490.0,101480.0,0.00029715]
[1737944284815,0.77422589,101490.0,101480.0,0.00029715]
[1737944287203,0.6651586,101490.0,101480.0,0.00029715]
[1737944287409,0.6651586,101490.0,101480.0,0.14810915]
[1737944287410,0.5173616,101490.0,101480.0,0.14810915]
[1737944287628,0.6173616,101490.0,101480.0,0.31384161]
[1737944287840,0.7651586,101490.0,101480.0,0.31384161]
[1737944288692,0.6173616,101490.0,101480.0,0.31384161]
[1737944289972,0.7651586,101490.0,101480.0,0.31384161]
[1737944290630,0.76250589,101490.0,101480.0,0.00029715]
[1737944291512,0.78550589,101490.0,101480.0,0.00029715]
[1737944291750,0.76250589,101490.0,101480.0,0.00029715]
[1737944292387,0.77248024,101490.0,101480.0,0.00029715]
[1737944292848,0.79548024,101490.0,101480.0,0.00029715]
[1737944293529,1.8751571,101490.0,101480.0,0.00029715]
[1737944293736,1.3105031,101490.0,101480.0,0.00029715]
[1737944293944,1.2411561,101490.0,101480.0,0.00029715]
[1737944294541,1.17600089,101490.0,101480.0,0.00029715]
[1737944294749,1.20666,101490.0,101480.0,1.5e-07]
[1737944294953,1.092165,101490.0,101480.0,1.5e-07]
[1737944295172,1.092165,101490.0,101420.0,0.0468]
[1737944295173,0.24787,101440.0,101420.0,0.0468]
[1737944295378,0.84961729,101440.0,101410.0,0.02756129]
[1737944295584,0.88901729,101440.0,101430.0,0.00079117]
[1737944295795,1.14119815,101440.0,101430.0,0.00079117]
[1737944295997,1.16419815,101440.0,101430.0,0.00079117]
[1737944296820,1.46598315,101440.0,101430.0,0.00079117]
[1737944297030,1.16419815,101440.0,101430.0,0.00079117]
[1737944297235,1.06201729,101440.0,101430.0,0.00079117]
[1737944297497,2.11717292,101440.0,101430.0,0.00079117]
[1737944297701,1.67733092,101440.0,101430.0,0.00079117]
[1737944298969,1.64894029,101440.0,101430.0,0.00079117]
[1737944299369,1.63469915,101440.0,101430.0,0.00079117]
[1737944299507,1.21333929,101440.0,101430.0,0.00079117]
[1737944299712,0.77729729,101440.0,101430.0,0.00079117]
[1737944299885,0.78901729,101440.0,101430.0,0.00079117]
[1737944300701,0.79001729,101440.0,101430.0,0.00079117]
[1737944301581,0.83455729,101440.0,101430.0,0.00079117]
[1737944301785,1.16089129,101440.0,101430.0,0.00079117]
[1737944301983,1.31018887,101440.0,101430.0,0.00079117]
[1737944302185,1.16018887,101440.0,101430.0,0.00079117]
[1737944302390,0.92313487,101440.0,101430.0,0.00079117]
[1737944302618,0.93485487,101440.0,101430.0,0.00079117]
[1737944303774,1.31272787,101440.0,101430.0,0.00079117]
[1737944303972,1.25759687,101440.0,101430.0,0.00079117]
[1737944304175,1.11247687,101440.0,101430.0,0.00079117]
[1737944304541,0.147899,101420.0,101410.0,0.21750153]
[1737944304740,0.75646629,101420.0,101410.0,0.15537623]
[1737944304948,0.75646629,101420.0,101410.0,0.30329023]
[1737944305690,0.75646629,101420.0,101410.0,0.15537623]
[1737944306241,0.75746629,101420.0,101410.0,0.15537623]
[1737944306369,0.75746629,101420.0,101410.0,0.06963792]
[1737944307001,0.75746629,101420.0,101410.0,0.21755192]
[1737944307198,0.75746629,101420.0,101410.0,0.06963792]
[1737944307380,0.75646629,101420.0,101410.0,0.06963792]
[1737944307580,0.75646629,101420.0,101410.0,0.11593607]
[1737944307834,0.75846629,101420.0,101410.0,0.11593607]
[1737944308851,0.75846629,101420.0,101410.0,0.21755192]
[1737944309442,0.79318629,101420.0,101410.0,4.939e-05]
[1737944309655,1.04536715,101420.0,101410.0,4.939e-05]
[1737944309866,1.75601453,101420.0,101410.0,4.939e-05]
[1737944310704,1.39027829,101420.0,101410.0,4.939e-05]
[1737944311141,1.39927829,101420.0,101410.0,4.939e-05]
[1737944311352,1.39027829,101420.0,101410.0,4.939e-05]
[1737944311554,1.40993494,101420.0,101410.0,4.939e-05]
[1737944311795,1.40721494,101420.0,101410.0,4.939e-05]
[1737944311996,1.05018629,101420.0,101410.0,4.939e-05]
[1737944312206,1.9900684,101420.0,101410.0,4.939e-05]
[1737944312455,2.01786153,101420.0,101410.0,4.939e-05]
[1737944312664,1.8650664,101420.0,101410.0,4.939e-05]
[1737944312867,1.83440729,101420.0,101410.0,4.939e-05]
[1737944313479,1.72636215,101420.0,101410.0,0.00019109]
[1737944313696,1.35551015,101420.0,101410.0,0.00019109]
[1737944314757,0.147958,101380.0,101370.0,0.570655]
[1737944314959,0.24530529,101380.0,101370.0,0.07554824]
[1737944315174,0.81892529,101380.0,101370.0,0.00014824]
[1737944315375,1.11939329,101380.0,101370.0,0.00014824]
[1737944316211,1.17939329,101380.0,101370.0,0.00014824]
[1737944316417,1.28699553,101380.0,101370.0,2.4e-07]
[1737944316623,1.08652753,101380.0,101370.0,2.4e-07]
[1737944316828,1.16212753,101380.0,101370.0,2.4e-07]
[1737944317455,1.16512753,101380.0,101370.0,2.4e-07]
[1737944317876,0.01,101370.0,101330.0,0.06159854]
[1737944318082,0.148016,101340.0,101330.0,0.06826768]
[1737944318291,0.73804329,101340.0,101330.0,0.06209366]
[1737944318503,0.77744329,101340.0,101330.0,0.08207112]
[1737944318705,0.77744329,101340.0,101330.0,0.08686563]
[1737944319127,0.53208,101340.0,101330.0,0.23489663]
[1737944319331,0.691816,101340.0,101330.0,0.23489663]
[1737944319470,0.691816,101340.0,101330.0,0.33268146]
[1737944319681,0.691816,101340.0,101330.0,0.16465046]
[1737944319930,0.80770329,101340.0,101330.0,0.02526709]
[1737944320148,0.80770329,101340.0,101330.0,0.00528963]
[1737944321856,0.80770329,101340.0,101330.0,0.00628963]
[1737944323943,0.798636,101340.0,101330.0,0.15432063]
[1737944324356,0.65062,101340.0,101330.0,0.15432063]
[1737944324606,0.65062,101340.0,101330.0,0.42166792]
[1737944324832,0.61122,101340.0,101330.0,0.54976792]
[1737944325038,0.51122,101340.0,101330.0,0.54976792]
[1737944325254,0.51122,101340.0,101330.0,0.81550922]
[1737944325467,0.0394,101360.0,101350.0,0.296101]
[1737944325676,0.1102337,101380.0,101370.0,0.317972]
[1737944325859,0.1275923,101390.0,101380.0,0.317958]
[1737944326069,0.2755353,101390.0,101380.0,0.17]
[1737944326275,0.2755353,101390.0,101380.0,0.32299814]
[1737944326483,0.188043,101390.0,101380.0,0.32299814]
[1737944326687,0.28539029,101390.0,101380.0,0.09159375]
[1737944327065,0.28539029,101390.0,101380.0,0.23970008]
[1737944327244,0.1401,101390.0,101380.0,0.23970008]
[1737944327447,0.1,101390.0,101380.0,0.23970008]
[1737944327998,0.1,101390.0,101380.0,0.25983703]
[1737944328210,0.1,101390.0,101380.0,0.25483703]
[1737944328409,0.1,101390.0,101380.0,0.279735]
[1737944328612,0.1,101390.0,101380.0,0.27479689]
[1737944329051,0.1,101390.0,101380.0,0.27579689]
[1737944330257,0.1,101390.0,101380.0,0.25579689]
[1737944330881,0.1,101390.0,101380.0,0.27579689]
[1737944331094,0.1,101390.0,101380.0,0.4440492]
[1737944331297,0.24529029,101390.0,101380.0,0.02128528]
[1737944331523,0.1,101390.0,101380.0,0.18924328]
[1737944331724,0.3748233,101400.0,101390.0,0.147943]
[1737944331930,0.2268923,101400.0,101390.0,0.18166163]
[1737944332134,0.287328,101400.0,101390.0,0.18166163]
[1737944332967,0.305868,101400.0,101390.0,0.18166163]
[1737944334110,0.1,101390.0,101380.0,0.58276828]
[1737944334343,0.1,101390.0,101380.0,0.18824328]
[1737944334768,0.34529029,101390.0,101380.0,0.02028528]
[1737944335227,0.93876029,101390.0,101380.0,0.02028528]
[1737944336172,0.93876029,101390.0,101380.0,0.00014833]
[1737944337674,0.94176029,101390.0,101380.0,0.00014833]
[1737944337878,0.94176029,101390.0,101380.0,0.00029013]
[1737944338078,0.94205808,101390.0,101380.0,0.00029013]
[1737944338774,0.84205808,101390.0,101380.0,0.00029013]
[1737944339868,0.83705808,101390.0,101380.0,0.00029013]
[1737944340506,1.02404408,101390.0,101380.0,0.00029013]
[1737944340715,0.83705808,101390.0,101380.0,0.00029013]
[1737944341353,0.85559808,101390.0,101380.0,0.00029013]
[1737944341556,1.00559808,101390.0,101380.0,0.00029013]
[1737944341785,1.10559808,101390.0,101380.0,0.00029013]
[1737944343374,1.11530603,101390.0,101380.0,0.00029013]
[1737944343578,2.07023003,101390.0,101380.0,0.00029013]
[1737944344019,0.248016,101340.0,101330.0,0.09748899]
[1737944344265,0.36390329,101340.0,101330.0,0.09798411]
[1737944344496,0.40330329,101340.0,101330.0,0.09798411]
[1737944345342,0.40330329,101340.0,101330.0,0.02167436]
[1737944345556,0.89647329,101340.0,101330.0,0.02167436]
[1737944345778,0.79647329,101340.0,101330.0,0.02167436]
[1737944347161,0.55111,101340.0,101330.0,0.33795767]
[1737944347361,0.55111,101340.0,101330.0,0.58645767]
[1737944347590,0.55111,101340.0,101330.0,0.68380496]
[1737944348341,0.51171,101340.0,101330.0,0.68380496]
[1737944348675,0.51171,101340.0,101330.0,0.68280496]
[1737944348879,0.51271,101340.0,101330.0,0.68280496]
[1737944349290,0.51271,101340.0,101330.0,0.82655225]
[1737944349703,0.47269648,101340.0,101330.0,0.55979994]
[1737944349952,0.47269648,101340.0,101330.0,0.02067436]
[1737944349953,0.71805977,101340.0,101330.0,0.02067436]
[1737944350104,0.71805977,101340.0,101330.0,0.00063682]
[1737944350105,0.75745977,101340.0,101330.0,0.00063682]
[1737944351000,0.78045977,101340.0,101330.0,0.00063682]
[1737944351172,0.88045977,101340.0,101330.0,0.00063682]
[1737944351503,0.87945977,101340.0,101330.0,0.00063682]
[1737944351709,0.75645977,101340.0,101330.0,0.00063682]
[1737944352050,0.75745977,101340.0,101330.0,0.00663682]
[1737944352253,0.75645977,101340.0,101330.0,0.00063682]
[1737944352457,0.78667977,101340.0,101330.0,0.00063682]
[1737944352654,0.78667977,101340.0,101330.0,0.14866782]
[1737944352655,0.64131648,101340.0,101330.0,0.14866782]
[1737944352887,0.64131648,101340.0,101330.0,0.21982937]
[1737944352888,0.62963648,101340.0,101330.0,0.21982937]
[1737944353033,0.49023648,101340.0,101330.0,0.23982937]
[1737944353243,0.49023648,101340.0,101330.0,0.40808168]
[1737944353672,0.49023648,101340.0,101330.0,0.50542897]
[1737944354161,0.49023648,101340.0,101330.0,0.23982937]
[1737944354355,0.59023648,101340.0,101330.0,0.23982937]
[1737944354713,0.73825248,101340.0,101330.0,0.23982937]
[1737944354864,0.73825248,101340.0,101330.0,0.21982937]
[1737944355481,0.73825248,101340.0,101330.0,0.23982937]
[1737944355647,0.73825248,101340.0,101330.0,0.21982937]
[1737944355861,0.73825248,101340.0,101330.0,0.23982937]
[1737944356087,0.73825248,101340.0,101330.0,0.09179837]
[1737944356294,0.73825248,101340.0,101330.0,0.07179837]
[1737944356525,0.73825248,101340.0,101330.0,0.00063682]
[1737944356526,0.73559977,101340.0,101330.0,0.00063682]
[1737944356723,0.77027977,101340.0,101330.0,0.00063682]
[1737944357910,0.92027977,101340.0,101330.0,0.00063682]
[1737944358082,1.05805677,101340.0,101330.0,0.00063682]
[1737944358286,0.92027977,101340.0,101330.0,0.00063682]
[1737944358602,1.11515877,101340.0,101330.0,0.00063682]
[1737944358816,0.90859977,101340.0,101330.0,0.00063682]
[1737944358968,0.92027977,101340.0,101330.0,0.00063682]
[1737944359394,0.92327977,101340.0,101330.0,0.00063682]
[1737944359585,0.91159977,101340.0,101330.0,0.00063682]
[1737944359894,1.03841784,101340.0,101330.0,0.00063682]
[1737944360079,0.93289784,101340.0,101330.0,0.00063682]
[1737944360698,0.93319563,101340.0,101330.0,0.00063682]
[1737944360956,0.92151563,101340.0,101330.0,0.00063682]
[1737944361300,0.93319563,101340.0,101330.0,0.00063682]
[1737944362147,0.92357756,101340.0,101330.0,0.00063682]
[1737944362358,0.88889756,101340.0,101330.0,0.00063682]
[1737944362564,0.90057756,101340.0,101330.0,0.00063682]
[1737944363060,1.01189756,101340.0,101330.0,0.00063682]
[1737944363322,1.47771067,101340.0,101330.0,0.00063682]
[1737944363543,1.37771067,101340.0,101330.0,0.00063682]
[1737944363748,1.45471067,101340.0,101330.0,0.00063682]
[1737944364637,1.52386067,101340.0,101330.0,0.00063682]
[1737944364852,1.4925038,101340.0,101330.0,8.2e-07]
[1737944365003,1.1177298,101340.0,101330.0,8.2e-07]
[1737944365222,1.1541298,101340.0,101330.0,8.2e-07]
[1737944365585,1.1631298,101340.0,101330.0,8.2e-07]
[1737944365786,2.251957,101330.0,101320.0,5.2e-07]
[1737944365955,0.61383053,101330.0,101320.0,9e-07]
[1737944366156,1.10406701,101330.0,101320.0,9e-07]
[1737944366361,0.148104,101280.0,101270.0,0.16958683]
[1737944366682,0.148104,101280.0,101270.0,0.08525983]
[1737944366889,0.187504,101280.0,101270.0,0.08525983]
[1737944367274,0.187504,101280.0,101270.0,0.08025983]
[1737944367482,0.74732777,101280.0,101270.0,0.00014792]
[1737944367682,0.80972777,101280.0,101270.0,0.00014792]
[1737944367863,0.1,101270.0,101260.0,0.01488792]
[1737944368064,0.34546529,101270.0,101260.0,0.01503645]
[1737944368263,0.34546529,101270.0,101260.0,0.05030818]
[1737944368493,0.34546529,101270.0,101260.0,0.01503645]
[1737944369247,0.81716177,101270.0,101260.0,0.01603645]
[1737944369475,0.83570177,101270.0,101260.0,0.01603645]
[1737944370702,0.84734177,101270.0,101260.0,0.16416945]
[1737944370910,0.84734177,101270.0,101260.0,0.08584583]
[1737944371052,0.84734177,101270.0,101260.0,0.01603645]
[1737944372451,0.49023648,101270.0,101260.0,0.33242176]
[1737944372674,0.49023648,101270.0,101260.0,0.50242176]
[1737944373180,0.49023648,101270.0,101260.0,0.64566905]
[1737944374002,0.49023648,101270.0,101260.0,0.72106905]
[1737944374242,0.49023648,101270.0,101260.0,0.82841634]
[1737944374436,0.49023648,101270.0,101260.0,0.81841634]
[1737944375315,0.49023648,101270.0,101260.0,0.81741634]
[1737944375574,0.49023648,101270.0,101260.0,0.82041634]
[1737944376332,0.49023648,101270.0,101260.0,0.83041634]
[1737944376743,0.01854,101270.0,101260.0,0.83041634]
[1737944376922,0.01854,101270.0,101260.0,0.80041634]
[1737944377200,0.01854,101270.0,101260.0,0.82041634]
[1737944377666,0.01854,101270.0,101260.0,0.83029722]
[1737944377854,0.01854,101270.0,101260.0,0.44339762]
[1737944378057,0.166658,101270.0,101260.0,0.33616945]
[1737944378267,0.01854,101270.0,101260.0,0.33316945]
[1737944378477,0.11854,101270.0,101260.0,0.33316945]
[1737944378629,0.267658,101270.0,101260.0,0.34116945]
[1737944378835,0.266658,101270.0,101260.0,0.43051674]
[1737944379037,0.266658,101270.0,101260.0,0.41051674]
[1737944379236,0.11854,101270.0,101260.0,0.43051674]
[1737944380116,0.01854,101270.0,101260.0,0.59876905]
[1737944380735,0.01854,101270.0,101260.0,0.69611634]
[1737944381170,0.01854,101270.0,101260.0,0.83021634]
[1737944382336,0.01854,101270.0,101260.0,0.85321634]
[1737944382738,0.01854,101270.0,101260.0,0.86021634]
[1737944382966,0.01954,101270.0,101260.0,0.86021634]
[1737944383289,0.01854,101270.0,101260.0,0.85321634]
[1737944383505,0.01883736,101270.0,101260.0,0.85321634]
[1737944384554,0.01983736,101270.0,101260.0,0.82721634]
[1737944385117,0.01983736,101270.0,101260.0,0.75181634]
[1737944385347,0.11983736,101270.0,101260.0,0.32016945]
[1737944385563,0.11983736,101270.0,101260.0,0.34016945]
[1737944386403,0.11883736,101270.0,101260.0,0.33316945]
[1737944387032,0.11883736,101270.0,101260.0,0.59876905]
[1737944387033,0.01883736,101270.0,101260.0,0.59876905]
[1737944387583,0.11883736,101270.0,101260.0,0.33316945]
[1737944387792,0.11883736,101270.0,101260.0,0.39207932]
[1737944388447,0.11883736,101270.0,101260.0,0.56033163]
[1737944390014,0.01883736,101270.0,101260.0,0.56033163]
[1737944390452,0.51475199,101290.0,101270.0,0.365597]
[1737944390703,0.65149328,101290.0,101270.0,0.365597]
[1737944390906,0.65149328,101290.0,101270.0,0.66043429]
[1737944391057,0.65149328,101290.0,101270.0,0.46294429]
[1737944391609,0.0394,101290.0,101280.0,0.148104]
[1737944391733,0.193489,101290.0,101280.0,0.148104]
[1737944392362,0.588409,101290.0,101270.0,0.66143429]
[1737944392530,0.384946,101290.0,101270.0,0.66043429]
[1737944392742,0.390946,101290.0,101280.0,0.149104]
[1737944392951,0.193489,101290.0,101280.0,0.23005783]
[1737944393471,0.0454,101290.0,101280.0,0.23005783]
[1737944393679,0.0454,101290.0,101280.0,0.25005783]
[1737944393877,0.06394,101290.0,101280.0,0.41831014]
[1737944394109,0.06394,101290.0,101280.0,0.25005783]
[1737944394543,0.02454,101290.0,101280.0,0.66565743]
[1737944394947,0.02483736,101290.0,101280.0,0.66565743]
[1737944396212,0.01883736,101290.0,101280.0,0.66465743]
[1737944396398,0.02183736,101290.0,101280.0,0.39905783]
[1737944396603,0.26992636,101290.0,101270.0,0.47260809]
[1737944396787,0.46738236,101290.0,101270.0,0.71947309]
[1737944396989,0.46738236,101290.0,101270.0,0.66041229]
[1737944397542,0.66484436,101290.0,101270.0,0.66041229]
[1737944397751,0.46738236,101290.0,101280.0,0.148104]
[1737944397932,0.46438236,101290.0,101280.0,0.23389303]
[1737944398132,0.46438236,101290.0,101280.0,0.08578903]
[1737944398308,0.46738236,101290.0,101280.0,0.08578903]
[1737944398650,0.02183736,101290.0,101280.0,0.23389303]
[1737944398797,0.01883736,101290.0,101280.0,0.23389303]
[1737944399253,0.02183736,101290.0,101280.0,0.23389303]
[1737944399798,0.16992636,101290.0,101280.0,0.23389303]
[1737944399980,0.02183736,101290.0,101280.0,0.23389303]
[1737944400886,0.16992636,101290.0,101280.0,0.23389303]
[1737944401092,0.16992636,101290.0,101280.0,0.08578903]
[1737944401093,0.26992636,101290.0,101280.0,0.08578903]
[1737944401491,0.02183736,101290.0,101280.0,0.23389303]
[1737944401695,0.02183736,101290.0,101280.0,0.57214534]
[1737944401899,0.02183736,101290.0,101280.0,0.66949263]
[1737944403471,0.02183736,101290.0,101280.0,0.69249263]
[1737944403673,0.02183736,101290.0,101280.0,0.70211232]
[1737944403870,0.02183736,101290.0,101280.0,0.71211232]
[1737944404291,0.0799,101320.0,101300.0,0.318075]
[1737944404543,0.0799,101320.0,101310.0,0.16806]
[1737944405123,0.524922,101330.0,101320.0,0.148045]
[1737944405341,0.0795,101330.0,101320.0,0.148045]
[1737944405541,0.07964757,101330.0,101320.0,0.148045]
[1737944405742,0.006,101320.0,101310.0,0.16906]
[1737944405875,0.154045,101320.0,101310.0,0.26640729]
[1737944406070,0.148045,101320.0,101310.0,0.09734729]
[1737944406311,0.24539229,101320.0,101310.0,0.09734729]
[1737944406520,0.32756,101310.0,101300.0,0.0712949]
[1737944406878,0.51330729,101310.0,101300.0,0.0712949]
[1737944407128,0.41596,101310.0,101300.0,0.0712949]
[1737944407336,0.36696,101310.0,101300.0,0.2193699]
[1737944407710,0.13744,101310.0,101300.0,0.2193699]
[1737944407910,0.05794,101310.0,101300.0,0.6549695]
[1737944408111,0.01854,101310.0,101300.0,0.6549695]
[1737944408339,0.02154,101310.0,101300.0,0.6549695]
[1737944408744,0.02154,101310.0,101300.0,0.7035695]
[1737944408946,0.02154,101310.0,101300.0,0.7265695]
[1737944409146,0.02154,101310.0,101300.0,0.8076695]
[1737944409304,0.02154,101310.0,101300.0,0.8176695]
[1737944409537,0.01854,101310.0,101300.0,0.8176695]
[1737944410219,0.01854,101310.0,101300.0,0.82728899]
[1737944410433,0.01854,101310.0,101300.0,0.81728899]
[1737944410638,0.01854,101310.0,101300.0,0.71762569]
[1737944410887,0.01854,101310.0,101300.0,0.73788351]
[1737944411346,0.01854,101310.0,101300.0,0.76088351]
[1737944411558,0.01854,101310.0,101300.0,0.77088351]
[1737944412183,0.01854,101310.0,101300.0,1.31248351]
[1737944412775,0.01854,101310.0,101300.0,0.77088351]
[1737944413187,0.01854,101310.0,101300.0,0.85198351]
[1737944413827,0.00029779,101340.0,101330.0,0.318031]
[1737944414038,0.00029779,101340.0,101330.0,1.20548866]
[1737944414244,0.00029779,101340.0,101330.0,1.21001404]
[1737944414655,0.00029779,101340.0,101330.0,1.20548866]
[1737944416986,0.00029779,101340.0,101330.0,1.22501127]
[1737944417239,0.00029779,101340.0,101330.0,0.75501127]
[1737944417428,0.00029779,101340.0,101330.0,0.76501127]
[1737944418862,0.00029779,101340.0,101330.0,0.76801127]
[1737944419073,0.00029779,101340.0,101330.0,0.84421127]
[1737944419282,0.07979758,101380.0,101360.0,0.02]
[1737944419480,0.0193327,101380.0,101370.0,0.48622431]
[1737944419682,0.0193327,101380.0,101370.0,0.68091889]
[1737944421007,0.0193327,101380.0,101370.0,0.70391889]
[1737944421212,0.0193327,101380.0,101370.0,1.57591889]
[1737944421413,0.0263327,101380.0,101370.0,1.57591889]
[1737944421814,0.0193327,101380.0,101370.0,1.57591889]
[1737944422153,0.0193327,101380.0,101370.0,1.56891889]
[1737944422399,0.0193327,101380.0,101370.0,1.54591889]
[1737944422594,0.0193327,101380.0,101370.0,1.35766658]
[1737944423158,0.0193327,101380.0,101370.0,1.36740591]
[1737944424059,0.0193327,101380.0,101370.0,1.53565822]
[1737944424258,0.0193327,101380.0,101370.0,1.26705862]
[1737944424667,0.0193327,101380.0,101370.0,1.28662371]
[1737944425190,0.3446907,101380.0,101370.0,0.003]
[1737944425693,0.3446907,101380.0,101370.0,0.023]
[1737944425897,0.2446907,101380.0,101370.0,0.023]
[1737944426314,0.3446907,101380.0,101370.0,0.003]
[1737944426519,0.44203799,101380.0,101370.0,0.003]
[1737944427137,0.63843799,101380.0,101370.0,0.003]
[1737944427298,0.445308,101360.0,101340.0,0.3849014]
[1737944427496,0.01854,101360.0,101350.0,0.36533]
[1737944427896,0.01854,101360.0,101350.0,0.53358231]
[1737944428867,0.01854,101360.0,101350.0,0.36833]
[1737944429439,0.01854,101360.0,101350.0,0.171001]
[1737944430750,0.01854,101360.0,101350.0,0.023]
[1737944430977,0.390327,101360.0,101350.0,0.08718633]
[1737944431596,0.24234,101360.0,101340.0,0.12683101]
[1737944431801,0.159601,101350.0,101340.0,0.09734729]
[1737944432013,0.159601,101350.0,101340.0,0.26536329]
[1737944432014,0.03014,101350.0,101340.0,0.26536329]
[1737944432434,0.03014,101350.0,101340.0,0.53096289]
[1737944432640,0.03014,101350.0,101340.0,0.68096289]
[1737944433057,0.01854,101350.0,101340.0,0.68096289]
[1737944433392,0.01854,101350.0,101340.0,0.51271058]
[1737944433823,0.01854,101350.0,101340.0,0.68096289]
[1737944435039,0.01854,101350.0,101340.0,0.71396289]
[1737944435259,0.01854,101350.0,101340.0,0.71696289]
[1737944435931,0.01854,101350.0,101340.0,0.73696289]
[1737944436488,0.0007927,101380.0,101370.0,0.317972]
[1737944436697,0.0007927,101380.0,101370.0,0.660569]
[1737944437907,0.0007927,101380.0,101370.0,0.662569]
[1737944438299,0.0007927,101380.0,101370.0,1.547569]
[1737944438495,0.0007927,101380.0,101370.0,1.557569]
[1737944439452,0.0193327,101380.0,101370.0,1.557569]
[1737944439654,0.0193327,101380.0,101370.0,1.57712285]
[1737944440059,0.0193327,101380.0,101370.0,1.56712285]
[1737944440276,0.0193327,101380.0,101370.0,1.57712285]
[1737944440695,0.0193327,101380.0,101370.0,1.57512285]
[1737944441122,0.0193327,101380.0,101370.0,1.58012285]
[1737944442208,0.0193327,101380.0,101370.0,1.5897718]
[1737944442896,0.0193327,101380.0,101370.0,1.5597718]
[1737944443349,0.0193327,101380.0,101370.0,1.5797718]
[1737944443569,0.0193327,101380.0,101370.0,1.5597718]
[1737944443794,0.0193327,101380.0,101370.0,1.5567718]
[1737944444026,0.0193327,101380.0,101370.0,1.38851949]
[1737944444198,0.0193327,101380.0,101370.0,1.5567718]
[1737944444397,0.0193327,101380.0,101370.0,1.5517718]
[1737944444608,0.0193327,101380.0,101370.0,1.5537718]
[1737944444923,0.0193327,101380.0,101370.0,1.5517718]
[1737944445125,0.0193327,101380.0,101370.0,1.5747718]
[1737944445381,0.0193327,101380.0,101370.0,1.5767718]
[1737944445771,0.0193327,101380.0,101370.0,1.5867718]
[1737944446313,0.00029779,101390.0,101380.0,0.167958]
[1737944446518,0.0004462,101390.0,101380.0,0.70489096]
[1737944446757,0.0004462,101390.0,101380.0,0.70390489]
[1737944447710,0.0004462,101390.0,101380.0,1.25050489]
[1737944448539,0.0004462,101390.0,101380.0,1.19439466]
[1737944449028,0.0003923,101390.0,101380.0,1.19439466]
[1737944449867,0.0189323,101390.0,101380.0,1.19439466]
[1737944451849,0.0874923,101480.0,101420.0,0.02]
[1737944452060,0.1701923,101480.0,101470.0,0.42996808]